[Event "Live Chess"]
[Site "Chess.com"]
[Date "2023.05.20"]
[Round "-"]
[White "ViktorTheCoolBoy"]
[Black "manthanit"]
[Result "1-0"]
[WhiteElo "2498"]
[BlackElo "1007"]
[TimeControl "300"]
[EndTime "13:47:39 PDT"]
[Termination "ViktorTheCoolBoy won by resignation"]

1. d4 {[%clk 0:04:59.2]} 1... e6 {[%clk 0:04:59.2]} 2. c4 {[%clk 0:04:58.3]}
2... d5 {[%clk 0:04:58.9]} 3. Nf3 {[%clk 0:04:57.8]} 3... a6 {[%clk 0:04:57.2]}
4. Nc3 {[%clk 0:04:57.2]} 4... c5 {[%clk 0:04:56.2]} 5. cxd5 {[%clk 0:04:55.9]}
5... exd5 {[%clk 0:04:55.3]} 6. dxc5 {[%clk 0:04:55.4]} 6... Bxc5 {[%clk
0:04:53.6]} 7. Qxd5 {[%clk 0:04:54.6]} 7... Qxd5 {[%clk 0:04:52.3]} 8. Nxd5
{[%clk 0:04:54.5]} 8... Bd6 {[%clk 0:04:48.2]} 9. Bd2 {[%clk 0:04:52.6]} 9...
Nf6 {[%clk 0:04:47.1]} 10. Nxf6+ {[%clk 0:04:51.4]} 10... gxf6 {[%clk
0:04:45.9]} 11. Bc3 {[%clk 0:04:51.3]} 11... Nd7 {[%clk 0:04:39.8]} 12. O-O-O
{[%clk 0:04:50.2]} 12... Be7 {[%clk 0:04:34.4]} 13. e3 {[%clk 0:04:48.9]} 13...
O-O {[%clk 0:04:32.3]} 14. Bd3 {[%clk 0:04:46.6]} 14... Nc5 {[%clk 0:04:09.5]}
15. Bc2 {[%clk 0:04:45]} 15... Bd7 {[%clk 0:04:04.8]} 16. b4 {[%clk 0:04:42.8]}
16... Rac8 {[%clk 0:03:24.3]} 17. bxc5 {[%clk 0:04:41.1]} 17... Rxc5 {[%clk
0:03:22.1]} 18. Rxd7 {[%clk 0:04:40.1]} 18... Rxc3 {[%clk 0:03:13.5]} 19. Rxe7
{[%clk 0:04:38.9]} 19... Rfc8 {[%clk 0:03:13]} 20. Nd4 {[%clk 0:04:38.1]} 20...
b5 {[%clk 0:03:09.8]} 21. Kb2 {[%clk 0:04:36.9]} 21... a5 {[%clk 0:03:06.6]} 22.
Bb3 {[%clk 0:04:36.1]} 22... a4 {[%clk 0:03:00.8]} 23. Bxf7+ {[%clk 0:04:35]}
23... Kf8 {[%clk 0:02:58.9]} 24. Rb7 {[%clk 0:04:34.1]} 24... a3+ {[%clk
0:02:55.6]} 25. Kb1 {[%clk 0:04:33.3]} 25... Rd3 {[%clk 0:02:36]} 26. Bb3 {[%clk
0:04:32]} 26... Rd2 {[%clk 0:02:33.2]} 27. Rd1 {[%clk 0:04:24.9]} 27... Rb2+
{[%clk 0:02:31.2]} 28. Ka1 {[%clk 0:04:24.4]} 28... Rxf2 {[%clk 0:02:16.2]} 29.
Ne6+ {[%clk 0:04:23.5]} 29... Ke8 {[%clk 0:02:13.8]} 30. Ng7+ {[%clk 0:04:21.5]}
30... Kf8 {[%clk 0:02:12.3]} 31. Rf7+ {[%clk 0:04:20.6]} 31... Kg8 {[%clk
0:02:06.9]} 32. Rxf6+ {[%clk 0:04:20]} 32... Kxg7 {[%clk 0:02:03.3]} 33. Rxf2
{[%clk 0:04:19.5]} 1-0

[Event "Live Chess"]
[Site "Chess.com"]
[Date "2023.05.20"]
[Round "-"]
[White "LodeshChess"]
[Black "DmitryVasliev"]
[Result "0-1"]
[WhiteElo "1098"]
[BlackElo "1669"]
[TimeControl "300"]
[EndTime "13:47:44 PDT"]
[Termination "DmitryVasliev won by resignation"]

1. e4 {[%clk 0:04:57.1]} 1... d5 {[%clk 0:04:59.5]} 2. exd5 {[%clk 0:04:55.7]}
2... e6 {[%clk 0:04:58.9]} 3. dxe6 {[%clk 0:04:50.5]} 3... Bxe6 {[%clk
0:04:58.2]} 4. Nf3 {[%clk 0:04:49.5]} 4... h6 {[%clk 0:04:56.4]} 5. Nc3 {[%clk
0:04:47.6]} 5... c6 {[%clk 0:04:55.5]} 6. d4 {[%clk 0:04:44.9]} 6... Nf6 {[%clk
0:04:53.6]} 7. Be3 {[%clk 0:04:41.5]} 7... Bd6 {[%clk 0:04:52]} 8. Qd2 {[%clk
0:04:37.8]} 8... Nbd7 {[%clk 0:04:50.6]} 9. O-O-O {[%clk 0:04:35.4]} 9... Qa5
{[%clk 0:04:42.4]} 10. Kb1 {[%clk 0:04:28.4]} 10... Bb4 {[%clk 0:04:37.6]} 11.
a3 {[%clk 0:04:03.7]} 11... Ne4 {[%clk 0:04:33.7]} 12. axb4 {[%clk 0:03:57.9]}
12... Nxd2+ {[%clk 0:04:31.2]} 0-1

[Event "Live Chess"]
[Site "Chess.com"]
[Date "2023.05.20"]
[Round "-"]
[White "Vitalii18a"]
[Black "wot-not"]
[Result "0-1"]
[WhiteElo "1100"]
[BlackElo "1518"]
[TimeControl "300"]
[EndTime "13:47:52 PDT"]
[Termination "wot-not won by checkmate"]

1. e4 {[%clk 0:04:57.5]} 1... e5 {[%clk 0:04:57.7]} 2. Nf3 {[%clk 0:04:56]} 2...
d6 {[%clk 0:04:57.2]} 3. Bb5+ {[%clk 0:04:53.1]} 3... c6 {[%clk 0:04:55.3]} 4.
Ba4 {[%clk 0:04:51.8]} 4... f5 {[%clk 0:04:54.6]} 5. d3 {[%clk 0:04:42]} 5...
Nf6 {[%clk 0:04:53.1]} 6. c3 {[%clk 0:04:37.6]} 6... Be7 {[%clk 0:04:51.1]} 7.
Nbd2 {[%clk 0:04:35.7]} 7... O-O {[%clk 0:04:49.9]} 8. b4 {[%clk 0:04:31.9]}
8... f4 {[%clk 0:04:46.1]} 9. Bb2 {[%clk 0:04:29.4]} 9... Bg4 {[%clk 0:04:44.9]}
10. O-O {[%clk 0:04:26.6]} 10... Nbd7 {[%clk 0:04:43.2]} 11. h3 {[%clk
0:04:25.3]} 11... Bh5 {[%clk 0:04:41.8]} 12. g4 {[%clk 0:04:21.9]} 12... Bf7
{[%clk 0:04:39.3]} 13. Nc4 {[%clk 0:04:17.3]} 13... Nb6 {[%clk 0:04:36.9]} 14.
Nxb6 {[%clk 0:04:12.2]} 14... axb6 {[%clk 0:04:36.2]} 15. d4 {[%clk 0:04:12.1]}
15... exd4 {[%clk 0:04:13.9]} 16. cxd4 {[%clk 0:04:10.2]} 16... Nxe4 {[%clk
0:03:39.7]} 17. Bc2 {[%clk 0:03:56.7]} 17... d5 {[%clk 0:03:37]} 18. Nd2 {[%clk
0:03:47.5]} 18... Bg6 {[%clk 0:03:31.1]} 19. Nxe4 {[%clk 0:03:45.6]} 19... Bxe4
{[%clk 0:03:29.5]} 20. Bxe4 {[%clk 0:03:35.3]} 20... dxe4 {[%clk 0:03:28.3]} 21.
Qe1 {[%clk 0:03:31.4]} 21... Qd5 {[%clk 0:03:19.9]} 22. f3 {[%clk 0:03:24.6]}
22... e3 {[%clk 0:03:17.6]} 23. Qc3 {[%clk 0:03:00.6]} 23... Rf6 {[%clk
0:03:03.2]} 24. Rae1 {[%clk 0:02:55.1]} 24... Rh6 {[%clk 0:03:01.5]} 25. Kh2
{[%clk 0:02:51.5]} 25... Rxa2 {[%clk 0:02:58]} 26. Re2 {[%clk 0:02:46.9]} 26...
Bh4 {[%clk 0:02:51.3]} 27. Ra1 {[%clk 0:02:14]} 27... Rxa1 {[%clk 0:02:48.8]}
28. Bxa1 {[%clk 0:02:12.5]} 28... Qxf3 {[%clk 0:02:43.2]} 29. Rg2 {[%clk
0:02:02.2]} 29... Bg3+ {[%clk 0:02:38.6]} 30. Kh1 {[%clk 0:01:56.3]} 30... Rxh3+
{[%clk 0:02:37.2]} 31. Kg1 {[%clk 0:01:45.8]} 31... Bf2+ {[%clk 0:02:31.6]} 32.
Rxf2 {[%clk 0:01:42.9]} 32... Qxf2# {[%clk 0:02:30.4]} 0-1

[Event "Live Chess"]
[Site "Chess.com"]
[Date "2023.05.20"]
[Round "-"]
[White "anatoliy10912"]
[Black "FailsGambits"]
[Result "1-0"]
[WhiteElo "1551"]
[BlackElo "1316"]
[TimeControl "300"]
[EndTime "13:47:54 PDT"]
[Termination "anatoliy10912 won on time"]

1. e4 {[%clk 0:04:58.6]} 1... e5 {[%clk 0:04:59.1]} 2. Nf3 {[%clk 0:04:57.5]}
2... Nc6 {[%clk 0:04:58.4]} 3. Bc4 {[%clk 0:04:56.5]} 3... Be7 {[%clk
0:04:56.9]} 4. d3 {[%clk 0:04:55.7]} 4... Nf6 {[%clk 0:04:55.3]} 5. Nc3 {[%clk
0:04:55.3]} 5... O-O {[%clk 0:04:51.9]} 6. a3 {[%clk 0:04:54.4]} 6... d6 {[%clk
0:04:47]} 7. h3 {[%clk 0:04:49.9]} 7... Be6 {[%clk 0:04:33.1]} 8. Bxe6 {[%clk
0:04:43.6]} 8... fxe6 {[%clk 0:04:33]} 9. Ng5 {[%clk 0:04:42.7]} 9... Qd7 {[%clk
0:04:00.2]} 10. O-O {[%clk 0:04:38.1]} 10... h6 {[%clk 0:03:59.2]} 11. Nf3
{[%clk 0:04:36.4]} 11... d5 {[%clk 0:03:50.7]} 12. exd5 {[%clk 0:04:29.4]} 12...
exd5 {[%clk 0:03:50.6]} 13. Re1 {[%clk 0:04:28.3]} 13... Bd6 {[%clk 0:03:39.3]}
14. Nh4 {[%clk 0:04:26.5]} 14... Qf7 {[%clk 0:03:16.6]} 15. Nb5 {[%clk 0:04:03]}
15... Rae8 {[%clk 0:02:45.9]} 16. Re3 {[%clk 0:03:58.9]} 16... a6 {[%clk
0:02:32.4]} 17. Nxd6 {[%clk 0:03:56.3]} 17... cxd6 {[%clk 0:02:32.3]} 18. Rg3
{[%clk 0:03:55.4]} 18... Nh5 {[%clk 0:02:10.3]} 19. Rf3 {[%clk 0:03:43.3]} 19...
Nf4 {[%clk 0:01:54.9]} 20. Kh2 {[%clk 0:03:36.6]} 20... Nd4 {[%clk 0:01:48.1]}
21. Re3 {[%clk 0:03:20.6]} 21... Nf5 {[%clk 0:01:25.1]} 22. Nxf5 {[%clk
0:03:16.7]} 22... Qxf5 {[%clk 0:01:25]} 23. Rf3 {[%clk 0:03:15.3]} 23... Qg6
{[%clk 0:01:15.2]} 24. Bxf4 {[%clk 0:02:58.7]} 24... Rxf4 {[%clk 0:01:10.4]} 25.
Qe2 {[%clk 0:02:47.2]} 25... Ref8 {[%clk 0:01:05.4]} 26. Re1 {[%clk 0:02:44.3]}
26... Rxf3 {[%clk 0:00:53.5]} 27. gxf3 {[%clk 0:02:40.5]} 27... Qf6 {[%clk
0:00:52.2]} 28. Rg1 {[%clk 0:02:29.3]} 28... Qf4+ {[%clk 0:00:45.2]} 29. Rg3
{[%clk 0:02:27.1]} 29... h5 {[%clk 0:00:40.3]} 30. Qe3 {[%clk 0:02:20.7]} 30...
Qf6 {[%clk 0:00:27.5]} 31. Qg5 {[%clk 0:02:15]} 31... Qxg5 {[%clk 0:00:26.4]}
32. Rxg5 {[%clk 0:02:13.7]} 32... Rxf3 {[%clk 0:00:26.1]} 33. Kg2 {[%clk
0:02:12.8]} 33... Rf6 {[%clk 0:00:23]} 34. Rxh5 {[%clk 0:02:11.6]} 34... Kf7
{[%clk 0:00:21.9]} 35. Rg5 {[%clk 0:02:08.3]} 35... Rg6 {[%clk 0:00:20.9]} 36.
Rg4 {[%clk 0:02:00.2]} 36... Rxg4+ {[%clk 0:00:19.4]} 37. hxg4 {[%clk
0:02:00.1]} 37... Kg6 {[%clk 0:00:19.1]} 38. Kg3 {[%clk 0:01:58.6]} 38... Kg5
{[%clk 0:00:18.6]} 39. f3 {[%clk 0:01:57.6]} 39... g6 {[%clk 0:00:17.6]} 40. a4
{[%clk 0:01:52.3]} 40... b6 {[%clk 0:00:17.1]} 41. b3 {[%clk 0:01:46.9]} 41...
b5 {[%clk 0:00:16]} 42. a5 {[%clk 0:01:42.3]} 42... b4 {[%clk 0:00:14.4]} 43. d4
{[%clk 0:01:34.5]} 43... exd4 {[%clk 0:00:12.5]} 44. f4+ {[%clk 0:01:33]} 44...
Kf6 {[%clk 0:00:11.8]} 45. Kf3 {[%clk 0:01:31.5]} 45... d3 {[%clk 0:00:08]} 46.
cxd3 {[%clk 0:01:29.9]} 46... g5 {[%clk 0:00:07.1]} 47. d4 {[%clk 0:01:25.4]}
47... gxf4 {[%clk 0:00:04.9]} 48. Kxf4 {[%clk 0:01:25.3]} 48... Kg6 {[%clk
0:00:04.2]} 49. g5 {[%clk 0:01:23.3]} 49... Kh5 {[%clk 0:00:02.3]} 50. Kf5
{[%clk 0:01:22.4]} 50... Kh4 {[%clk 0:00:01.2]} 51. g6 {[%clk 0:01:21.5]} 51...
Kg3 {[%clk 0:00:01.1]} 52. g7 {[%clk 0:01:20.9]} 52... Kf3 {[%clk 0:00:01]} 53.
g8=Q {[%clk 0:01:20.1]} 53... Ke3 {[%clk 0:00:00.7]} 54. Qxd5 {[%clk 0:01:19.1]}
1-0

[Event "Live Chess"]
[Site "Chess.com"]
[Date "2023.05.20"]
[Round "-"]
[White "WilliamofOrange16th"]
[Black "chessfiction"]
[Result "0-1"]
[WhiteElo "1841"]
[BlackElo "2405"]
[TimeControl "300"]
[EndTime "13:48:05 PDT"]
[Termination "chessfiction won by resignation"]

1. b3 {[%clk 0:04:56]} 1... d5 {[%clk 0:04:57.9]} 2. Bb2 {[%clk 0:04:55.2]} 2...
Bg4 {[%clk 0:04:57.2]} 3. f3 {[%clk 0:04:53.5]} 3... Bh5 {[%clk 0:04:56.3]} 4.
Nh3 {[%clk 0:04:38.7]} 4... e5 {[%clk 0:04:55.2]} 5. Bxe5 {[%clk 0:04:29]} 5...
Nc6 {[%clk 0:04:54.3]} 6. Bg3 {[%clk 0:04:24.3]} 6... Nge7 {[%clk 0:04:51.6]} 7.
Nf4 {[%clk 0:04:22.3]} 7... Bg6 {[%clk 0:04:48.4]} 8. d3 {[%clk 0:04:20.5]} 8...
Nf5 {[%clk 0:04:47.4]} 9. Nxg6 {[%clk 0:04:18.4]} 9... hxg6 {[%clk 0:04:47.3]}
10. Bf2 {[%clk 0:04:17.1]} 10... d4 {[%clk 0:04:44.8]} 11. a3 {[%clk 0:04:09]}
11... Bd6 {[%clk 0:04:41.4]} 12. Qd2 {[%clk 0:03:57.8]} 12... Qe7 {[%clk
0:04:37]} 13. g4 {[%clk 0:03:44.8]} 13... Ng3 {[%clk 0:04:32.8]} 14. Rg1 {[%clk
0:03:32.9]} 14... Nxf1 {[%clk 0:04:31.7]} 15. Kxf1 {[%clk 0:03:22]} 15... Rxh2
{[%clk 0:04:31.6]} 16. Bg3 {[%clk 0:03:12.7]} 16... Bxg3 {[%clk 0:04:29.9]} 17.
Rxg3 {[%clk 0:03:11.9]} 17... Qh4 {[%clk 0:04:29.5]} 18. Rg2 {[%clk 0:03:07.7]}
18... Qh3 {[%clk 0:04:22.5]} 19. e4 {[%clk 0:03:04.8]} 19... Qxf3+ {[%clk
0:04:20.1]} 20. Qf2 {[%clk 0:03:02.3]} 20... Qd1+ {[%clk 0:04:06.5]} 0-1

[Event "Live Chess"]
[Site "Chess.com"]
[Date "2023.05.20"]
[Round "-"]
[White "LutherSullivan"]
[Black "tehanu"]
[Result "1-0"]
[WhiteElo "1974"]
[BlackElo "1119"]
[TimeControl "300"]
[EndTime "13:48:07 PDT"]
[Termination "LutherSullivan won by resignation"]

1. e4 {[%clk 0:04:58.9]} 1... Nf6 {[%clk 0:04:56.4]} 2. e5 {[%clk 0:04:57.9]}
2... Nd5 {[%clk 0:04:54.8]} 3. d4 {[%clk 0:04:57.5]} 3... d6 {[%clk 0:04:53.7]}
4. c4 {[%clk 0:04:55.7]} 4... Nb6 {[%clk 0:04:51.2]} 5. exd6 {[%clk 0:04:55.3]}
5... c6 {[%clk 0:04:50.3]} 6. Qe2 {[%clk 0:04:33.1]} 6... Qxd6 {[%clk
0:04:48.3]} 7. c5 {[%clk 0:04:30.5]} 7... Qxd4 {[%clk 0:04:45.8]} 8. cxb6 {[%clk
0:04:29.3]} 8... Qxb6 {[%clk 0:04:45.2]} 9. Nc3 {[%clk 0:04:25.8]} 9... e6
{[%clk 0:04:43.3]} 10. Be3 {[%clk 0:04:23.9]} 10... Qc7 {[%clk 0:04:29.2]} 11.
Nf3 {[%clk 0:04:20.7]} 11... Bd6 {[%clk 0:03:52.7]} 12. Qc2 {[%clk 0:04:19.4]}
12... O-O {[%clk 0:03:27.9]} 13. Bd3 {[%clk 0:04:18.2]} 13... Nd7 {[%clk
0:01:49.7]} 14. Bxh7+ {[%clk 0:04:15]} 14... Kh8 {[%clk 0:01:48.8]} 15. Bd3
{[%clk 0:04:13.7]} 15... Nc5 {[%clk 0:01:09]} 16. Bxc5 {[%clk 0:04:11.4]} 16...
Bxc5 {[%clk 0:01:08.9]} 17. Qa4 {[%clk 0:04:10.1]} 17... b5 {[%clk 0:00:59.1]}
18. Qh4+ {[%clk 0:04:08.4]} 1-0

[Event "Live Chess"]
[Site "Chess.com"]
[Date "2023.05.20"]
[Round "-"]
[White "JohanKjeldahl"]
[Black "Inglaterra"]
[Result "0-1"]
[WhiteElo "1837"]
[BlackElo "2048"]
[TimeControl "300"]
[EndTime "13:48:07 PDT"]
[Termination "Inglaterra won by checkmate"]

1. c4 {[%clk 0:04:57.4]} 1... e5 {[%clk 0:04:58]} 2. Nc3 {[%clk 0:04:55.6]} 2...
Nf6 {[%clk 0:04:57.6]} 3. Nf3 {[%clk 0:04:53.9]} 3... Bb4 {[%clk 0:04:57.1]} 4.
Nd5 {[%clk 0:04:48.9]} 4... Nxd5 {[%clk 0:04:51.7]} 5. cxd5 {[%clk 0:04:47.3]}
5... O-O {[%clk 0:04:50]} 6. e3 {[%clk 0:04:42.2]} 6... d6 {[%clk 0:04:48.4]} 7.
a3 {[%clk 0:04:38]} 7... Ba5 {[%clk 0:04:46.5]} 8. b4 {[%clk 0:04:37.2]} 8...
Bb6 {[%clk 0:04:45.4]} 9. Bb2 {[%clk 0:04:36.9]} 9... Bg4 {[%clk 0:04:43.7]} 10.
Be2 {[%clk 0:04:34.6]} 10... Nd7 {[%clk 0:04:38.5]} 11. O-O {[%clk 0:04:33.4]}
11... f5 {[%clk 0:04:29.5]} 12. h3 {[%clk 0:04:32.3]} 12... Bxf3 {[%clk
0:04:18.2]} 13. Bxf3 {[%clk 0:04:30.6]} 13... Qg5 {[%clk 0:04:09.6]} 14. Rc1
{[%clk 0:04:20.8]} 14... f4 {[%clk 0:04:02.6]} 15. exf4 {[%clk 0:04:15.4]} 15...
Rxf4 {[%clk 0:04:02.5]} 16. Qb3 {[%clk 0:04:07.6]} 16... Raf8 {[%clk 0:03:40.1]}
17. Kh1 {[%clk 0:04:01.8]} 17... Rxf3 {[%clk 0:03:36.3]} 18. gxf3 {[%clk
0:03:59]} 18... Rf4 {[%clk 0:03:27.1]} 19. Rg1 {[%clk 0:03:48.8]} 19... Qf5
{[%clk 0:03:18.4]} 20. Rg4 {[%clk 0:03:45.8]} 20... Rxf3 {[%clk 0:03:15.3]} 21.
Qc4 {[%clk 0:03:37.4]} 21... Rxh3+ {[%clk 0:03:12.2]} 22. Kg2 {[%clk 0:03:34.1]}
22... Qf3+ {[%clk 0:03:11]} 23. Kg1 {[%clk 0:03:31.2]} 23... Rh1# {[%clk
0:03:09.3]} 0-1

[Event "Live Chess"]
[Site "Chess.com"]
[Date "2023.05.20"]
[Round "-"]
[White "AbilifyXL"]
[Black "kevinmilleruk"]
[Result "1-0"]
[WhiteElo "1950"]
[BlackElo "1150"]
[TimeControl "300"]
[EndTime "13:48:11 PDT"]
[Termination "AbilifyXL won by checkmate"]

1. d4 {[%clk 0:04:58.8]} 1... Nf6 {[%clk 0:04:58.7]} 2. c4 {[%clk 0:04:58.7]}
2... d5 {[%clk 0:04:57.1]} 3. Nc3 {[%clk 0:04:58.6]} 3... e6 {[%clk 0:04:54.5]}
4. cxd5 {[%clk 0:04:57.8]} 4... Nxd5 {[%clk 0:04:52.2]} 5. Nf3 {[%clk
0:04:57.7]} 5... Bb4 {[%clk 0:04:50]} 6. Qc2 {[%clk 0:04:56.6]} 6... O-O {[%clk
0:04:46.1]} 7. e4 {[%clk 0:04:55.8]} 7... Nxc3 {[%clk 0:04:44.4]} 8. bxc3 {[%clk
0:04:55.7]} 8... Ba5 {[%clk 0:04:39.2]} 9. Bd3 {[%clk 0:04:54.7]} 9... Nc6
{[%clk 0:04:31.9]} 10. O-O {[%clk 0:04:52]} 10... a6 {[%clk 0:04:27.3]} 11. Bg5
{[%clk 0:04:48.1]} 11... f6 {[%clk 0:04:25.1]} 12. Bf4 {[%clk 0:04:45.9]} 12...
e5 {[%clk 0:04:20.2]} 13. dxe5 {[%clk 0:04:43.5]} 13... fxe5 {[%clk 0:04:19]}
14. Bxe5 {[%clk 0:04:41.5]} 14... Nxe5 {[%clk 0:04:16.3]} 15. Nxe5 {[%clk
0:04:40.5]} 15... c5 {[%clk 0:04:08.2]} 16. Qb3+ {[%clk 0:04:38.6]} 16... Kh8
{[%clk 0:04:02.8]} 17. Nf7+ {[%clk 0:04:37.5]} 17... Rxf7 {[%clk 0:04:00.7]} 18.
Qxf7 {[%clk 0:04:36.4]} 18... Qg5 {[%clk 0:03:55.5]} 19. Qf8# {[%clk 0:04:33.8]}
1-0

[Event "Live Chess"]
[Site "Chess.com"]
[Date "2023.05.20"]
[Round "-"]
[White "kenn48"]
[Black "MrBlond89"]
[Result "0-1"]
[WhiteElo "1180"]
[BlackElo "1423"]
[TimeControl "300"]
[EndTime "13:48:26 PDT"]
[Termination "MrBlond89 won on time"]

1. e4 {[%clk 0:04:57.4]} 1... e5 {[%clk 0:04:59.2]} 2. Nf3 {[%clk 0:04:55.1]}
2... Nc6 {[%clk 0:04:58.5]} 3. Bc4 {[%clk 0:04:53.8]} 3... f5 {[%clk 0:04:57.4]}
4. exf5 {[%clk 0:04:49.6]} 4... e4 {[%clk 0:04:56]} 5. Qe2 {[%clk 0:04:48]} 5...
Qe7 {[%clk 0:04:53.7]} 6. d3 {[%clk 0:04:43.6]} 6... exf3 {[%clk 0:04:50.2]} 7.
Qxe7+ {[%clk 0:04:40.3]} 7... Ngxe7 {[%clk 0:04:46.4]} 8. gxf3 {[%clk
0:04:37.6]} 8... d5 {[%clk 0:04:43.5]} 9. Bb5 {[%clk 0:04:28.9]} 9... Bxf5
{[%clk 0:04:41.5]} 10. Nc3 {[%clk 0:04:16.1]} 10... d4 {[%clk 0:04:35.4]} 11.
Ne4 {[%clk 0:04:14.2]} 11... Bxe4 {[%clk 0:04:33.9]} 12. fxe4 {[%clk 0:04:12.1]}
12... a6 {[%clk 0:04:32.7]} 13. Ba4 {[%clk 0:04:05.7]} 13... b5 {[%clk
0:04:31.5]} 14. Bb3 {[%clk 0:04:03.4]} 14... Na5 {[%clk 0:04:30.7]} 15. Be6
{[%clk 0:03:56.4]} 15... Nec6 {[%clk 0:04:20.5]} 16. Bd2 {[%clk 0:03:48.4]}
16... Bd6 {[%clk 0:04:09.5]} 17. O-O-O {[%clk 0:03:29.7]} 17... Nd8 {[%clk
0:03:45.2]} 18. Bd5 {[%clk 0:03:26.5]} 18... c6 {[%clk 0:03:38.1]} 19. Bxa5
{[%clk 0:03:07.5]} 19... cxd5 {[%clk 0:03:36.7]} 20. exd5 {[%clk 0:03:01.6]}
20... O-O {[%clk 0:03:35.4]} 21. Rde1 {[%clk 0:02:45.8]} 21... Rxf2 {[%clk
0:03:32.1]} 22. Re8+ {[%clk 0:02:41.5]} 22... Rf8 {[%clk 0:03:24.1]} 23. Rhe1
{[%clk 0:02:32.5]} 23... Bxh2 {[%clk 0:03:16.3]} 24. Rxf8+ {[%clk 0:02:24.2]}
24... Kxf8 {[%clk 0:03:13.7]} 25. Bb4+ {[%clk 0:02:22]} 25... Kg8 {[%clk
0:02:49.2]} 26. Rf1 {[%clk 0:02:06]} 26... Nf7 {[%clk 0:02:42]} 27. Bc5 {[%clk
0:01:56.1]} 27... Be5 {[%clk 0:02:34.6]} 28. Kd2 {[%clk 0:01:42.7]} 28... a5
{[%clk 0:02:26.8]} 29. a3 {[%clk 0:01:40.6]} 29... b4 {[%clk 0:02:19.6]} 30.
axb4 {[%clk 0:01:36.9]} 30... axb4 {[%clk 0:02:18.7]} 31. Bxb4 {[%clk
0:01:34.4]} 31... Ra2 {[%clk 0:02:16]} 32. Ba3 {[%clk 0:01:20.7]} 32... h5
{[%clk 0:02:08.4]} 33. Rh1 {[%clk 0:00:58.7]} 33... g6 {[%clk 0:02:05.1]} 34.
Rg1 {[%clk 0:00:51.2]} 34... Kg7 {[%clk 0:01:54.8]} 35. Rf1 {[%clk 0:00:41.4]}
35... g5 {[%clk 0:01:49.7]} 36. Be7 {[%clk 0:00:24.8]} 36... Rxb2 {[%clk
0:01:40.6]} 37. Kc1 {[%clk 0:00:09.1]} 37... Ra2 {[%clk 0:01:36.4]} 38. Rf5
{[%clk 0:00:00.7]} 38... Kg6 {[%clk 0:01:16.3]} 0-1

[Event "Live Chess"]
[Site "Chess.com"]
[Date "2023.05.20"]
[Round "-"]
[White "MarkLim1"]
[Black "YrrriKharkiv"]
[Result "0-1"]
[WhiteElo "1651"]
[BlackElo "2069"]
[TimeControl "300"]
[EndTime "13:48:29 PDT"]
[Termination "YrrriKharkiv won by resignation"]

1. d4 {[%clk 0:04:58.3]} 1... Nf6 {[%clk 0:04:58.6]} 2. Nf3 {[%clk 0:04:57.7]}
2... c5 {[%clk 0:04:57.4]} 3. d5 {[%clk 0:04:56.8]} 3... g6 {[%clk 0:04:55.5]}
4. Nc3 {[%clk 0:04:55.3]} 4... Bg7 {[%clk 0:04:54]} 5. e4 {[%clk 0:04:54.3]}
5... d6 {[%clk 0:04:53.5]} 6. Bb5+ {[%clk 0:04:52.9]} 6... Bd7 {[%clk
0:04:52.2]} 7. a4 {[%clk 0:04:52.1]} 7... a6 {[%clk 0:04:51.1]} 8. Be2 {[%clk
0:04:50.4]} 8... O-O {[%clk 0:04:49.9]} 9. O-O {[%clk 0:04:49.8]} 9... Bg4
{[%clk 0:04:47.5]} 10. Nd2 {[%clk 0:04:48.5]} 10... Bxe2 {[%clk 0:04:45.8]} 11.
Qxe2 {[%clk 0:04:47.8]} 11... Nbd7 {[%clk 0:04:45.3]} 12. Nc4 {[%clk 0:04:45.7]}
12... b5 {[%clk 0:04:43.6]} 13. axb5 {[%clk 0:04:44.4]} 13... axb5 {[%clk
0:04:42.9]} 14. Rxa8 {[%clk 0:04:43.2]} 14... Qxa8 {[%clk 0:04:42.5]} 15. Nxb5
{[%clk 0:04:42.3]} 15... Qa6 {[%clk 0:04:34.7]} 16. Nc3 {[%clk 0:04:37.5]} 16...
Rb8 {[%clk 0:04:16.5]} 17. b3 {[%clk 0:04:34.9]} 17... Nb6 {[%clk 0:04:11.1]}
18. Bb2 {[%clk 0:04:31]} 18... Nxc4 {[%clk 0:04:09.8]} 0-1

[Event "Live Chess"]
[Site "Chess.com"]
[Date "2023.05.20"]
[Round "-"]
[White "OceanFloater"]
[Black "rideuv21"]
[Result "1-0"]
[WhiteElo "1023"]
[BlackElo "1803"]
[TimeControl "300"]
[EndTime "13:48:37 PDT"]
[Termination "OceanFloater won by checkmate"]

1. e4 {[%clk 0:04:57.2]} 1... c5 {[%clk 0:04:59.9]} 2. Nf3 {[%clk 0:04:56.1]}
2... Nc6 {[%clk 0:04:58.8]} 3. a3 {[%clk 0:04:54.1]} 3... e6 {[%clk 0:04:56]} 4.
b4 {[%clk 0:04:53]} 4... cxb4 {[%clk 0:04:55.9]} 5. axb4 {[%clk 0:04:51.8]} 5...
Bxb4 {[%clk 0:04:55.8]} 6. Ba3 {[%clk 0:04:49.3]} 6... Bxa3 {[%clk 0:04:54.5]}
7. Rxa3 {[%clk 0:04:48.5]} 7... Nge7 {[%clk 0:04:54.2]} 8. Nc3 {[%clk
0:04:46.9]} 8... d5 {[%clk 0:04:53.4]} 9. exd5 {[%clk 0:04:45.5]} 9... Nxd5
{[%clk 0:04:53.3]} 10. Nxd5 {[%clk 0:04:44.3]} 10... Qxd5 {[%clk 0:04:53.2]} 11.
Rd3 {[%clk 0:04:38.8]} 11... Qh5 {[%clk 0:04:50.9]} 12. Qa1 {[%clk 0:04:31.8]}
12... O-O {[%clk 0:04:48]} 13. g3 {[%clk 0:04:21.8]} 13... Ne5 {[%clk
0:04:41.5]} 14. Nxe5 {[%clk 0:04:20.1]} 14... Qxe5+ {[%clk 0:04:41.4]} 15. Qxe5
{[%clk 0:04:18.8]} 15... a5 {[%clk 0:04:38.3]} 16. Bg2 {[%clk 0:04:13.4]} 16...
a4 {[%clk 0:04:36.8]} 17. Ra3 {[%clk 0:04:11.1]} 17... Bd7 {[%clk 0:04:33.3]}
18. O-O {[%clk 0:04:09.7]} 18... Rab8 {[%clk 0:04:29.8]} 19. Rb1 {[%clk
0:04:05.4]} 19... b5 {[%clk 0:04:27.8]} 20. d3 {[%clk 0:03:49.9]} 20... b4
{[%clk 0:04:25.5]} 21. Raa1 {[%clk 0:03:44.6]} 21... Rfc8 {[%clk 0:04:20.2]} 22.
Be4 {[%clk 0:03:25.2]} 22... a3 {[%clk 0:04:12.1]} 23. Qd6 {[%clk 0:03:23.6]}
23... Ba4 {[%clk 0:04:04.9]} 24. Rxb4 {[%clk 0:03:12.1]} 24... Rxb4 {[%clk
0:04:01.9]} 25. Qxb4 {[%clk 0:03:11.5]} 25... Bxc2 {[%clk 0:04:01.8]} 26. Qxa3
{[%clk 0:03:06.8]} 26... f5 {[%clk 0:03:56.7]} 27. Rc1 {[%clk 0:03:06.2]} 27...
fxe4 {[%clk 0:03:55]} 28. dxe4 {[%clk 0:03:05.3]} 28... Rc6 {[%clk 0:03:52.7]}
29. Qa8+ {[%clk 0:03:02.8]} 29... Kf7 {[%clk 0:03:50.1]} 30. Qxc6 {[%clk
0:03:01.9]} 30... Bb3 {[%clk 0:03:49]} 31. Qb7+ {[%clk 0:02:59.4]} 31... Kf6
{[%clk 0:03:47.6]} 32. Qxb3 {[%clk 0:02:58.7]} 32... Kf7 {[%clk 0:03:47.5]} 33.
Qb7+ {[%clk 0:02:57]} 33... Kf6 {[%clk 0:03:47.4]} 34. f4 {[%clk 0:02:55.4]}
34... g5 {[%clk 0:03:45.4]} 35. Qc8 {[%clk 0:02:50.2]} 35... gxf4 {[%clk
0:03:43.8]} 36. gxf4 {[%clk 0:02:49]} 36... e5 {[%clk 0:03:41.9]} 37. Rc6+
{[%clk 0:02:47.7]} 37... Kg7 {[%clk 0:03:40.3]} 38. Qd7+ {[%clk 0:02:46.7]}
38... Kh8 {[%clk 0:03:39.2]} 39. Rc8# {[%clk 0:02:46.4]} 1-0